[Event "Live Chess"]
[Site "Chess.com"]
[Date "2024.06.02"]
[Round "-"]
[White "grillage"]
[Black "CarmelJane"]
[Result "1/2-1/2"]
[WhiteElo "1860"]
[BlackElo "2047"]
[TimeControl "300"]
[EndTime "18:19:25 PDT"]
[Termination "Game drawn - insufficient material"]

1. d4 {[%clk 0:04:58.1]} 1... b6 {[%clk 0:04:58.4]} 2. Nf3 {[%clk 0:04:54.5]}
2... Bb7 {[%clk 0:04:58]} 3. g3 {[%clk 0:04:51.5]} 3... g6 {[%clk 0:04:57]} 4.
Bg2 {[%clk 0:04:51]} 4... Bg7 {[%clk 0:04:54.8]} 5. O-O {[%clk 0:04:49.4]} 5...
d6 {[%clk 0:04:52.5]} 6. c4 {[%clk 0:04:44.8]} 6... Nd7 {[%clk 0:04:51.7]} 7.
Nc3 {[%clk 0:04:43.6]} 7... e6 {[%clk 0:04:50.6]} 8. Bg5 {[%clk 0:04:40.8]} 8...
Ne7 {[%clk 0:04:49.4]} 9. Qd2 {[%clk 0:04:34.3]} 9... h6 {[%clk 0:04:48.4]} 10.
Be3 {[%clk 0:04:30.7]} 10... Nf5 {[%clk 0:04:44.8]} 11. Rfd1 {[%clk 0:04:19.6]}
11... Nxe3 {[%clk 0:04:27.2]} 12. Qxe3 {[%clk 0:04:08.6]} 12... O-O {[%clk
0:04:16.8]} 13. Rac1 {[%clk 0:04:01.6]} 13... Nf6 {[%clk 0:04:11.7]} 14. Qd2
{[%clk 0:03:57.6]} 14... Rc8 {[%clk 0:04:06]} 15. e3 {[%clk 0:03:55.3]} 15...
Ne4 {[%clk 0:04:02.5]} 16. Nxe4 {[%clk 0:03:52.6]} 16... Bxe4 {[%clk 0:04:01.1]}
17. b3 {[%clk 0:03:47.4]} 17... Qf6 {[%clk 0:03:56.7]} 18. Ne1 {[%clk
0:03:43.1]} 18... Bxg2 {[%clk 0:03:47.5]} 19. Kxg2 {[%clk 0:03:40.4]} 19... c5
{[%clk 0:03:35.9]} 20. d5 {[%clk 0:03:34]} 20... exd5 {[%clk 0:03:28.2]} 21.
Qxd5 {[%clk 0:03:32.1]} 21... Qe5 {[%clk 0:03:14.7]} 22. Qxe5 {[%clk 0:03:25.3]}
22... dxe5 {[%clk 0:03:14.6]} 23. e4 {[%clk 0:03:19.1]} 23... f5 {[%clk
0:03:11.5]} 24. f3 {[%clk 0:03:10.7]} 24... fxe4 {[%clk 0:03:08.6]} 25. fxe4
{[%clk 0:03:09.5]} 25... Bf6 {[%clk 0:03:04.5]} 26. Rd5 {[%clk 0:03:06.7]} 26...
Bg5 {[%clk 0:03:01.5]} 27. Rcd1 {[%clk 0:03:05.7]} 27... Be3 {[%clk 0:02:58.3]}
28. Nf3 {[%clk 0:02:53.9]} 28... Bd4 {[%clk 0:02:55.9]} 29. Rf1 {[%clk
0:02:49.2]} 29... Rce8 {[%clk 0:02:44.8]} 30. Rd7 {[%clk 0:02:37.6]} 30... g5
{[%clk 0:02:34]} 31. Rxa7 {[%clk 0:02:29.4]} 31... g4 {[%clk 0:02:29.5]} 32. Nh4
{[%clk 0:02:23.6]} 32... Rxf1 {[%clk 0:02:29.4]} 33. Kxf1 {[%clk 0:02:22.5]}
33... Rf8+ {[%clk 0:02:28.8]} 34. Nf5 {[%clk 0:02:20]} 34... b5 {[%clk
0:02:24.4]} 35. cxb5 {[%clk 0:02:11.9]} 35... c4 {[%clk 0:02:23.6]} 36. Rg7+
{[%clk 0:02:04.1]} 36... Kh8 {[%clk 0:02:21.9]} 37. bxc4 {[%clk 0:02:03.3]}
37... Rxf5+ {[%clk 0:02:16]} 38. exf5 {[%clk 0:01:58.7]} 38... Kxg7 {[%clk
0:02:15.7]} 39. Ke2 {[%clk 0:01:48.7]} 39... Kf6 {[%clk 0:02:13.1]} 40. Kd3
{[%clk 0:01:41.7]} 40... Kxf5 {[%clk 0:02:09.8]} 41. a4 {[%clk 0:01:41]} 41...
Bb6 {[%clk 0:02:05.6]} 42. Kc3 {[%clk 0:01:13.1]} 42... e4 {[%clk 0:01:54.7]}
43. Kb4 {[%clk 0:01:10.5]} 43... e3 {[%clk 0:01:53.5]} 44. Kc3 {[%clk
0:01:08.9]} 44... e2 {[%clk 0:01:52.7]} 45. Kd2 {[%clk 0:01:05.9]} 45... Ke4
{[%clk 0:01:51.3]} 46. Kxe2 {[%clk 0:01:04.6]} 46... Kd4 {[%clk 0:01:50.9]} 47.
Kd2 {[%clk 0:00:52]} 47... Kxc4 {[%clk 0:01:50.1]} 48. Kc2 {[%clk 0:00:49.4]}
48... Kb4 {[%clk 0:01:35.5]} 49. Kd3 {[%clk 0:00:48.2]} 49... Kxa4 {[%clk
0:01:33.3]} 50. Ke4 {[%clk 0:00:47.6]} 50... Bg1 {[%clk 0:01:07.4]} 51. Kf4
{[%clk 0:00:46.3]} 51... Bxh2 {[%clk 0:01:06.6]} 52. b6 {[%clk 0:00:45]} 52...
Bg1 {[%clk 0:01:03.2]} 53. b7 {[%clk 0:00:44.1]} 53... Ba7 {[%clk 0:01:02.5]}
54. Kxg4 {[%clk 0:00:43.4]} 54... Bb8 {[%clk 0:00:49.4]} 55. Kh4 {[%clk
0:00:39]} 55... Kb5 {[%clk 0:00:46.1]} 56. g4 {[%clk 0:00:38.1]} 56... Kb6
{[%clk 0:00:40.3]} 57. Kh5 {[%clk 0:00:37.7]} 57... Kxb7 {[%clk 0:00:32.8]} 58.
Kxh6 {[%clk 0:00:36.8]} 58... Be5 {[%clk 0:00:32.2]} 59. g5 {[%clk 0:00:34.4]}
59... Ba1 {[%clk 0:00:32.1]} 60. g6 {[%clk 0:00:30.9]} 60... Kc7 {[%clk
0:00:30.9]} 61. g7 {[%clk 0:00:30.1]} 61... Bxg7+ {[%clk 0:00:30.1]} 1/2-1/2

[Event "Live Chess"]
[Site "Chess.com"]
[Date "2024.06.02"]
[Round "-"]
[White "Cruiseylee78"]
[Black "booktrunk"]
[Result "0-1"]
[WhiteElo "1655"]
[BlackElo "1504"]
[TimeControl "300"]
[EndTime "18:19:48 PDT"]
[Termination "booktrunk won by checkmate"]

1. d4 {[%clk 0:04:56.1]} 1... e6 {[%clk 0:04:57.9]} 2. Bf4 {[%clk 0:04:54.6]}
2... Nf6 {[%clk 0:04:55.3]} 3. e3 {[%clk 0:04:53.7]} 3... h6 {[%clk 0:04:53.1]}
4. Nf3 {[%clk 0:04:52.4]} 4... Nh5 {[%clk 0:04:51.6]} 5. Bg3 {[%clk 0:04:51.1]}
5... Nxg3 {[%clk 0:04:49.8]} 6. hxg3 {[%clk 0:04:51]} 6... Bd6 {[%clk
0:04:45.7]} 7. Bd3 {[%clk 0:04:49.3]} 7... Nc6 {[%clk 0:04:44.6]} 8. c3 {[%clk
0:04:48.2]} 8... a6 {[%clk 0:04:41.9]} 9. Qc2 {[%clk 0:04:47.1]} 9... Ne7 {[%clk
0:04:39.8]} 10. Nbd2 {[%clk 0:04:45.9]} 10... b6 {[%clk 0:04:33]} 11. O-O-O
{[%clk 0:04:30.3]} 11... Bb7 {[%clk 0:04:30.4]} 12. Rh2 {[%clk 0:04:26.7]} 12...
c5 {[%clk 0:04:16.9]} 13. Ne5 {[%clk 0:03:41.2]} 13... cxd4 {[%clk 0:04:10.8]}
14. exd4 {[%clk 0:03:28.8]} 14... Rc8 {[%clk 0:04:09.4]} 15. Kb1 {[%clk
0:03:27.2]} 15... Nc6 {[%clk 0:03:55]} 16. Nxc6 {[%clk 0:03:14.8]} 16... Rxc6
{[%clk 0:03:47.8]} 17. Re1 {[%clk 0:03:13.7]} 17... b5 {[%clk 0:03:27.9]} 18. d5
{[%clk 0:03:11.1]} 18... Rc7 {[%clk 0:03:22.5]} 19. dxe6 {[%clk 0:03:10]} 19...
dxe6 {[%clk 0:03:20.9]} 20. f4 {[%clk 0:03:04.3]} 20... g5 {[%clk 0:03:15.6]}
21. f5 {[%clk 0:03:03.2]} 21... Bxg3 {[%clk 0:03:13.5]} 22. fxe6 {[%clk
0:02:45.9]} 22... Bxe1 {[%clk 0:03:11.7]} 23. exf7+ {[%clk 0:02:44.4]} 23...
Kxf7 {[%clk 0:03:10.2]} 24. Bg6+ {[%clk 0:02:41.5]} 24... Kf8 {[%clk 0:03:08.8]}
25. Qf5+ {[%clk 0:02:39]} 25... Ke7 {[%clk 0:02:53.7]} 26. Qe5+ {[%clk
0:02:33.3]} 26... Kf8 {[%clk 0:02:47.2]} 27. Qxe1 {[%clk 0:02:31.2]} 27... Qe7
{[%clk 0:02:43.6]} 28. Qf1+ {[%clk 0:02:28.9]} 28... Kg7 {[%clk 0:02:41.6]} 29.
Qd3 {[%clk 0:02:23.7]} 29... Rd8 {[%clk 0:02:33.5]} 30. Qh3 {[%clk 0:02:18.7]}
30... Qe1+ {[%clk 0:02:22.9]} 31. Kc2 {[%clk 0:02:16.8]} 31... Qxd2+ {[%clk
0:02:12]} 32. Kb3 {[%clk 0:02:13.8]} 32... Rh8 {[%clk 0:01:42.5]} 33. g4 {[%clk
0:02:01.1]} 33... Qd5+ {[%clk 0:01:35.6]} 34. Ka3 {[%clk 0:01:58.2]} 34... Qc5+
{[%clk 0:01:30.8]} 35. b4 {[%clk 0:01:55.1]} 35... Qxc3+ {[%clk 0:01:27.5]} 36.
Qxc3+ {[%clk 0:01:48.7]} 36... Rxc3+ {[%clk 0:01:27.4]} 37. Kb2 {[%clk 0:01:46]}
37... Rc4 {[%clk 0:01:19.4]} 38. Bd3 {[%clk 0:01:43.9]} 38... Rxb4+ {[%clk
0:01:15.5]} 39. Kc3 {[%clk 0:01:35.4]} 39... Rxg4 {[%clk 0:01:12.9]} 40. Bf5
{[%clk 0:01:29.7]} 40... Rf4 {[%clk 0:01:09.7]} 41. Be6 {[%clk 0:01:27.1]} 41...
Re8 {[%clk 0:01:04.4]} 42. Bb3 {[%clk 0:01:24.8]} 42... Rc8+ {[%clk 0:01:01.1]}
43. Kb2 {[%clk 0:01:19.7]} 43... Rf5 {[%clk 0:00:52.6]} 44. a3 {[%clk
0:01:15.5]} 44... Bd5 {[%clk 0:00:48.4]} 45. Bxd5 {[%clk 0:01:13.2]} 45... Rxd5
{[%clk 0:00:46.5]} 46. Re2 {[%clk 0:01:10.5]} 46... Rc7 {[%clk 0:00:44.1]} 47.
Re8 {[%clk 0:01:08.7]} 47... h5 {[%clk 0:00:42.4]} 48. a4 {[%clk 0:01:05.6]}
48... bxa4 {[%clk 0:00:40.7]} 49. Ra8 {[%clk 0:01:03]} 49... Rd6 {[%clk
0:00:39]} 50. Rb8 {[%clk 0:00:59.5]} 50... Rdd7 {[%clk 0:00:35.1]} 51. Rb4
{[%clk 0:00:58]} 51... Rb7 {[%clk 0:00:33.8]} 52. Rxb7 {[%clk 0:00:56.4]} 52...
Rxb7+ {[%clk 0:00:33.7]} 53. Ka3 {[%clk 0:00:56.1]} 53... h4 {[%clk 0:00:32.6]}
54. Kxa4 {[%clk 0:00:56]} 54... h3 {[%clk 0:00:32.1]} 55. Ka5 {[%clk 0:00:55.9]}
55... h2 {[%clk 0:00:31]} 56. Kxa6 {[%clk 0:00:55.8]} 56... Rb2 {[%clk
0:00:29.1]} 57. Ka5 {[%clk 0:00:53.9]} 57... h1=Q {[%clk 0:00:28.3]} 58. Ka4
{[%clk 0:00:53.8]} 58... Qa1# {[%clk 0:00:27.2]} 0-1

[Event "Live Chess"]
[Site "Chess.com"]
[Date "2024.06.02"]
[Round "-"]
[White "Crowded_House"]
[Black "oscalik"]
[Result "0-1"]
[WhiteElo "1706"]
[BlackElo "2278"]
[TimeControl "300"]
[EndTime "18:20:25 PDT"]
[Termination "oscalik won by checkmate"]

1. d4 {[%clk 0:04:57.1]} 1... Nf6 {[%clk 0:04:58.2]} 2. Bg5 {[%clk 0:04:56.2]}
2... Ne4 {[%clk 0:04:56.3]} 3. Bh4 {[%clk 0:04:55]} 3... c5 {[%clk 0:04:53.8]}
4. dxc5 {[%clk 0:04:49.8]} 4... Qa5+ {[%clk 0:04:49.1]} 5. c3 {[%clk 0:04:47.4]}
5... Qxc5 {[%clk 0:04:47.3]} 6. Nd2 {[%clk 0:04:42.1]} 6... Nxd2 {[%clk
0:04:40]} 7. Qxd2 {[%clk 0:04:39.8]} 7... d6 {[%clk 0:04:39]} 8. Nf3 {[%clk
0:04:38.2]} 8... Nc6 {[%clk 0:04:38]} 9. e3 {[%clk 0:04:35.8]} 9... g6 {[%clk
0:04:33.8]} 10. Bd3 {[%clk 0:04:32]} 10... Bg7 {[%clk 0:04:32.9]} 11. O-O {[%clk
0:04:30]} 11... O-O {[%clk 0:04:32]} 12. Nd4 {[%clk 0:04:21.2]} 12... Bd7 {[%clk
0:04:22.3]} 13. Nxc6 {[%clk 0:04:18.3]} 13... Bxc6 {[%clk 0:04:20.9]} 14. Bxe7
{[%clk 0:04:14.5]} 14... Rfe8 {[%clk 0:04:19.6]} 15. Bh4 {[%clk 0:04:10.7]}
15... h5 {[%clk 0:04:08.2]} 16. Bg3 {[%clk 0:04:07.5]} 16... Qg5 {[%clk
0:03:59.2]} 17. f4 {[%clk 0:03:38]} 17... Qd5 {[%clk 0:03:47.4]} 18. Rf2 {[%clk
0:03:21.6]} 18... Re7 {[%clk 0:03:38.3]} 19. c4 {[%clk 0:03:04.1]} 19... Qc5
{[%clk 0:02:57.5]} 20. b4 {[%clk 0:02:46.3]} 20... Qxe3 {[%clk 0:02:53.4]} 21.
Qxe3 {[%clk 0:02:45.3]} 21... Rxe3 {[%clk 0:02:51.4]} 22. Rd1 {[%clk 0:02:41.2]}
22... Ba4 {[%clk 0:02:46.8]} 23. Rdd2 {[%clk 0:02:29.2]} 23... Bc3 {[%clk
0:02:45.1]} 24. Rde2 {[%clk 0:02:23.5]} 24... Rxd3 {[%clk 0:02:42.1]} 25. Re7
{[%clk 0:02:15.2]} 25... Bd4 {[%clk 0:02:38.8]} 26. Rxb7 {[%clk 0:02:07.8]}
26... Rd1# {[%clk 0:02:36.7]} 0-1

[Event "Live Chess"]
[Site "Chess.com"]
[Date "2024.06.02"]
[Round "-"]
[White "Duke_of_Bebington"]
[Black "lyricalschemes"]
[Result "1/2-1/2"]
[WhiteElo "1647"]
[BlackElo "2218"]
[TimeControl "300"]
[EndTime "18:21:09 PDT"]
[Termination "Game drawn by agreement"]

1. e4 {[%clk 0:04:56.7]} 1... Nf6 {[%clk 0:04:59]} 2. e5 {[%clk 0:04:55.2]} 2...
Nd5 {[%clk 0:04:58]} 3. c4 {[%clk 0:04:54.9]} 3... Nb6 {[%clk 0:04:57]} 4. d4
{[%clk 0:04:54.6]} 4... d6 {[%clk 0:04:56.2]} 5. f4 {[%clk 0:04:53.2]} 5... dxe5
{[%clk 0:04:55.5]} 6. fxe5 {[%clk 0:04:51.3]} 6... Nc6 {[%clk 0:04:55.2]} 7. Nf3
{[%clk 0:04:48.8]} 7... Bg4 {[%clk 0:04:54]} 8. Be3 {[%clk 0:04:41.5]} 8... Bxf3
{[%clk 0:04:52.4]} 9. gxf3 {[%clk 0:04:41.4]} 9... e6 {[%clk 0:04:50.7]} 10. Nc3
{[%clk 0:04:38.9]} 10... Qd7 {[%clk 0:04:40.6]} 11. Qd2 {[%clk 0:04:36.6]} 11...
O-O-O {[%clk 0:04:39.7]} 12. O-O-O {[%clk 0:04:34.9]} 12... Bb4 {[%clk
0:04:37.8]} 13. a3 {[%clk 0:04:32.5]} 13... Be7 {[%clk 0:04:36.9]} 14. Qc2
{[%clk 0:04:18.8]} 14... Na5 {[%clk 0:04:31]} 15. Na2 {[%clk 0:04:03.1]} 15...
Qc6 {[%clk 0:04:26.4]} 16. Nb4 {[%clk 0:03:50.1]} 16... Bxb4 {[%clk 0:04:21.6]}
17. axb4 {[%clk 0:03:50]} 17... Naxc4 {[%clk 0:04:20.6]} 18. Bxc4 {[%clk
0:03:42.3]} 18... Nxc4 {[%clk 0:04:18.4]} 19. Bf2 {[%clk 0:03:39.1]} 19... Qb5
{[%clk 0:04:13.8]} 20. Rd3 {[%clk 0:03:31.7]} 20... Nxe5 {[%clk 0:04:09.1]} 21.
Rc3 {[%clk 0:03:20.9]} 21... Nc6 {[%clk 0:04:08.1]} 22. Rd1 {[%clk 0:03:18]}
22... Rd5 {[%clk 0:04:02.5]} 23. Rc5 {[%clk 0:03:09.5]} 23... Qxc5 {[%clk
0:03:29.1]} 24. bxc5 {[%clk 0:02:36.3]} 24... Rhd8 {[%clk 0:03:25.4]} 25. Qc3
{[%clk 0:02:30.8]} 25... e5 {[%clk 0:03:23.9]} 1/2-1/2

[Event "Live Chess"]
[Site "Chess.com"]
[Date "2024.06.02"]
[Round "-"]
[White "ShanthamGrarks"]
[Black "asingardenof"]
[Result "1-0"]
[WhiteElo "1861"]
[BlackElo "626"]
[TimeControl "300"]
[EndTime "18:22:00 PDT"]
[Termination "ShanthamGrarks won by resignation"]

1. d4 {[%clk 0:04:56.3]} 1... Nf6 {[%clk 0:04:48.5]} 2. Nc3 {[%clk 0:04:55.8]}
2... g6 {[%clk 0:04:46.8]} 3. e4 {[%clk 0:04:55.3]} 3... Bg7 {[%clk 0:04:46.7]}
4. e5 {[%clk 0:04:54.5]} 4... Ng8 {[%clk 0:04:36.7]} 5. f4 {[%clk 0:04:52.4]}
5... e6 {[%clk 0:04:35.5]} 6. Nf3 {[%clk 0:04:51.8]} 6... b6 {[%clk 0:04:30.6]}
7. Bd3 {[%clk 0:04:51]} 7... f5 {[%clk 0:04:27.8]} 8. exf6 {[%clk 0:04:47.8]}
8... Bxf6 {[%clk 0:04:25.8]} 9. Ne5 {[%clk 0:04:44.8]} 9... Bb7 {[%clk
0:04:21.7]} 10. Nxg6 {[%clk 0:04:42.6]} 10... hxg6 {[%clk 0:04:19.9]} 11. Bxg6+
{[%clk 0:04:40.5]} 11... Kf8 {[%clk 0:04:16.7]} 12. Qg4 {[%clk 0:04:37.9]} 12...
Bxd4 {[%clk 0:04:07.1]} 13. h4 {[%clk 0:04:22]} 13... Ne7 {[%clk 0:04:03.5]} 14.
Be4 {[%clk 0:04:18.7]} 14... Bxe4 {[%clk 0:04:00]} 15. Nxe4 {[%clk 0:04:16]}
15... Rg8 {[%clk 0:03:50.4]} 16. Qh5 {[%clk 0:04:11.7]} 16... Nbc6 {[%clk
0:03:37.9]} 17. Ng5 {[%clk 0:04:09.4]} 17... Ng6 {[%clk 0:03:31.7]} 18. Qh6+
{[%clk 0:04:03.6]} 18... Ke8 {[%clk 0:03:29.5]} 19. Qh7 {[%clk 0:03:50]} 19...
Rf8 {[%clk 0:03:24.9]} 20. Qxg6+ {[%clk 0:03:46]} 20... Ke7 {[%clk 0:03:20.4]}
21. Qh7+ {[%clk 0:03:37.4]} 21... Rf7 {[%clk 0:03:15.5]} 22. Qxf7+ {[%clk
0:03:35.8]} 22... Kd6 {[%clk 0:03:15.4]} 23. Ne4+ {[%clk 0:03:32.9]} 23... Kd5
{[%clk 0:03:10.1]} 24. Qg6 {[%clk 0:03:16.2]} 24... Ne5 {[%clk 0:02:51.5]} 25.
fxe5 {[%clk 0:03:07.5]} 25... Bxe5 {[%clk 0:02:51.4]} 26. Bg5 {[%clk 0:03:03.4]}
26... Qg8 {[%clk 0:02:43.1]} 27. O-O-O+ {[%clk 0:03:01]} 27... Kc6 {[%clk
0:02:35.6]} 28. Qh5 {[%clk 0:02:52.7]} 28... Qf8 {[%clk 0:02:00.4]} 29. Rhf1
{[%clk 0:02:49.5]} 29... Qb4 {[%clk 0:01:58.4]} 30. Nc3 {[%clk 0:02:38.3]} 30...
Qxb2+ {[%clk 0:01:56]} 31. Kxb2 {[%clk 0:02:35.7]} 1-0

[Event "Live Chess"]
[Site "Chess.com"]
[Date "2024.06.02"]
[Round "-"]
[White "Mikhail_Golubev"]
[Black "gobbles19"]
[Result "0-1"]
[WhiteElo "2570"]
[BlackElo "2293"]
[TimeControl "300"]
[EndTime "18:22:21 PDT"]
[Termination "gobbles19 won on time"]

1. e4 {[%clk 0:04:55.7]} 1... d6 {[%clk 0:04:58.1]} 2. f4 {[%clk 0:04:52.9]}
2... g6 {[%clk 0:04:56.2]} 3. d4 {[%clk 0:04:42.5]} 3... Bg7 {[%clk 0:04:53.3]}
4. c4 {[%clk 0:04:32.7]} 4... Nf6 {[%clk 0:04:49.1]} 5. Nc3 {[%clk 0:04:30.8]}
5... Na6 {[%clk 0:04:42.8]} 6. Nf3 {[%clk 0:04:26.3]} 6... c5 {[%clk 0:04:41.7]}
7. d5 {[%clk 0:04:19]} 7... O-O {[%clk 0:04:30.9]} 8. Bd3 {[%clk 0:04:05.3]}
8... Nc7 {[%clk 0:04:25.7]} 9. O-O {[%clk 0:03:57.6]} 9... e6 {[%clk 0:04:23.5]}
10. h3 {[%clk 0:03:43.2]} 10... exd5 {[%clk 0:04:21]} 11. exd5 {[%clk
0:03:35.2]} 11... Rb8 {[%clk 0:04:12.8]} 12. a4 {[%clk 0:03:31.9]} 12... Na6
{[%clk 0:04:04]} 13. Ra3 {[%clk 0:03:18.5]} 13... Nb4 {[%clk 0:04:02]} 14. Bb1
{[%clk 0:03:17.4]} 14... b6 {[%clk 0:03:53.5]} 15. g4 {[%clk 0:03:07.7]} 15...
Re8 {[%clk 0:03:38]} 16. f5 {[%clk 0:02:49.6]} 16... Ba6 {[%clk 0:03:31.8]} 17.
Nb5 {[%clk 0:02:28.7]} 17... Qd7 {[%clk 0:02:36.5]} 18. Bf4 {[%clk 0:02:17.8]}
18... Bxb5 {[%clk 0:02:26.3]} 19. axb5 {[%clk 0:02:17.4]} 19... Re4 {[%clk
0:02:19.5]} 20. Bxe4 {[%clk 0:02:10.6]} 20... Nxe4 {[%clk 0:02:18.8]} 21. fxg6
{[%clk 0:01:59.6]} 21... hxg6 {[%clk 0:02:16.7]} 22. Re3 {[%clk 0:01:46.4]}
22... Re8 {[%clk 0:01:48.8]} 23. b3 {[%clk 0:01:31]} 23... Na2 {[%clk
0:01:43.6]} 24. Kg2 {[%clk 0:01:00]} 24... Nac3 {[%clk 0:01:39.6]} 25. Qe1
{[%clk 0:00:51.4]} 25... f5 {[%clk 0:01:28.9]} 26. gxf5 {[%clk 0:00:45.6]} 26...
Qxf5 {[%clk 0:01:28.8]} 27. Bxd6 {[%clk 0:00:32.5]} 27... Rd8 {[%clk 0:01:26.9]}
28. Bh2 {[%clk 0:00:30.5]} 28... Ng5 {[%clk 0:01:11.4]} 29. Nxg5 {[%clk
0:00:22.2]} 29... Qxg5+ {[%clk 0:01:11.3]} 30. Rg3 {[%clk 0:00:21.4]} 30... Qh5
{[%clk 0:01:01.7]} 31. Rxc3 {[%clk 0:00:18.5]} 31... Bxc3 {[%clk 0:00:58.4]} 32.
Qxc3 {[%clk 0:00:18.4]} 32... Qg5+ {[%clk 0:00:56.3]} 33. Kh1 {[%clk 0:00:16.1]}
33... Re8 {[%clk 0:00:54.2]} 34. Rg1 {[%clk 0:00:11.5]} 34... Qf5 {[%clk
0:00:52.4]} 35. Qg3 {[%clk 0:00:09.2]} 35... Qe4+ {[%clk 0:00:51.1]} 36. Rg2
{[%clk 0:00:08.5]} 36... Kh7 {[%clk 0:00:48]} 37. Bg1 {[%clk 0:00:04.5]} 37...
Re5 {[%clk 0:00:42.1]} 38. d6 {[%clk 0:00:04.4]} 38... Re6 {[%clk 0:00:37.7]}
39. d7 {[%clk 0:00:03.1]} 39... Re5 {[%clk 0:00:28.1]} 0-1

[Event "Live Chess"]
[Site "Chess.com"]
[Date "2024.06.02"]
[Round "-"]
[White "Cruiseylee78"]
[Black "grillage"]
[Result "0-1"]
[WhiteElo "1651"]
[BlackElo "1864"]
[TimeControl "300"]
[EndTime "18:22:25 PDT"]
[Termination "grillage won by resignation"]

1. d4 {[%clk 0:04:57.6]} 1... e6 {[%clk 0:04:57.2]} 2. Bf4 {[%clk 0:04:52.7]}
2... Nf6 {[%clk 0:04:55.3]} 3. e3 {[%clk 0:04:51]} 3... c5 {[%clk 0:04:54.6]} 4.
c3 {[%clk 0:04:48.8]} 4... cxd4 {[%clk 0:04:53.5]} 5. exd4 {[%clk 0:04:47.9]}
5... Be7 {[%clk 0:04:52.7]} 6. Nf3 {[%clk 0:04:46.9]} 6... b6 {[%clk 0:04:52.1]}
7. Bd3 {[%clk 0:04:46.3]} 7... Ba6 {[%clk 0:04:50.9]} 8. Qc2 {[%clk 0:04:44.9]}
8... Bxd3 {[%clk 0:04:49.5]} 9. Qxd3 {[%clk 0:04:44.8]} 9... O-O {[%clk
0:04:48.1]} 10. Nbd2 {[%clk 0:04:44.4]} 10... d6 {[%clk 0:04:47.2]} 11. O-O-O
{[%clk 0:04:43.4]} 11... Nbd7 {[%clk 0:04:45.9]} 12. h4 {[%clk 0:04:43.3]} 12...
b5 {[%clk 0:04:40.7]} 13. Qxb5 {[%clk 0:04:39.8]} 13... Rb8 {[%clk 0:04:39.4]}
14. Qd3 {[%clk 0:04:38.2]} 14... Qb6 {[%clk 0:04:36.3]} 15. b3 {[%clk
0:04:36.3]} 15... a5 {[%clk 0:04:34.8]} 16. h5 {[%clk 0:04:34.6]} 16... h6
{[%clk 0:04:33.4]} 17. Rhg1 {[%clk 0:04:31]} 17... a4 {[%clk 0:04:32]} 18. g4
{[%clk 0:04:28.5]} 18... axb3 {[%clk 0:04:30.1]} 19. axb3 {[%clk 0:04:26.2]}
19... Rfc8 {[%clk 0:04:26.5]} 20. g5 {[%clk 0:04:25.1]} 20... hxg5 {[%clk
0:04:24.6]} 21. Rxg5 {[%clk 0:04:21.5]} 21... Nd5 {[%clk 0:04:22.6]} 22. Rg4
{[%clk 0:03:36.2]} 22... Rxc3+ {[%clk 0:04:19.2]} 23. Kb2 {[%clk 0:03:30.8]}
23... Rxd3 {[%clk 0:04:17.8]} 0-1

[Event "Live Chess"]
[Site "Chess.com"]
[Date "2024.06.02"]
[Round "-"]
[White "MagnersCarlsberg2870"]
[Black "NAZRIZ1977"]
[Result "1-0"]
[WhiteElo "1802"]
[BlackElo "2114"]
[TimeControl "300"]
[EndTime "18:22:55 PDT"]
[Termination "MagnersCarlsberg2870 won by resignation"]

1. d4 {[%clk 0:04:57.3]} 1... Nf6 {[%clk 0:04:58.7]} 2. Nf3 {[%clk 0:04:54.6]}
2... g6 {[%clk 0:04:57.4]} 3. Nc3 {[%clk 0:04:53.2]} 3... d5 {[%clk 0:04:56.1]}
4. Bg5 {[%clk 0:04:51.3]} 4... Bg7 {[%clk 0:04:55.6]} 5. Qd2 {[%clk 0:04:50.5]}
5... Ne4 {[%clk 0:04:53.7]} 6. Nxe4 {[%clk 0:04:44.8]} 6... dxe4 {[%clk
0:04:52.3]} 7. Ne5 {[%clk 0:04:42.3]} 7... f6 {[%clk 0:04:43.2]} 8. Bh6 {[%clk
0:04:40.9]} 8... Bxh6 {[%clk 0:04:41.9]} 9. Qxh6 {[%clk 0:04:39.7]} 9... fxe5
{[%clk 0:04:41]} 10. Qg7 {[%clk 0:04:39]} 10... Rf8 {[%clk 0:04:36.9]} 11. dxe5
{[%clk 0:04:37.8]} 11... e6 {[%clk 0:04:27.7]} 12. Qxh7 {[%clk 0:04:35.5]} 12...
Qe7 {[%clk 0:04:17.1]} 13. Qxg6+ {[%clk 0:04:33.7]} 13... Qf7 {[%clk 0:04:16.7]}
14. Qxe4 {[%clk 0:04:29.5]} 14... Nd7 {[%clk 0:04:12.5]} 15. f3 {[%clk 0:04:22]}
15... Nc5 {[%clk 0:04:09.6]} 16. Qd4 {[%clk 0:04:15.3]} 16... b6 {[%clk
0:04:06.4]} 17. O-O-O {[%clk 0:04:14]} 17... Qf4+ {[%clk 0:03:56.9]} 18. Qxf4
{[%clk 0:04:06.4]} 18... Rxf4 {[%clk 0:03:55.2]} 19. e4 {[%clk 0:04:03.9]} 19...
Bb7 {[%clk 0:03:51.6]} 20. h4 {[%clk 0:04:00.1]} 20... Ke7 {[%clk 0:03:46.4]}
21. h5 {[%clk 0:03:59]} 21... Rh8 {[%clk 0:03:39.8]} 22. g4 {[%clk 0:03:52]}
22... Rxf3 {[%clk 0:03:37.7]} 23. g5 {[%clk 0:03:47.8]} 23... Bxe4 {[%clk
0:03:25.2]} 24. g6 {[%clk 0:03:44.1]} 24... Bxg6 {[%clk 0:03:23]} 25. Bg2 {[%clk
0:03:43]} 25... Rf2 {[%clk 0:03:19]} 26. hxg6 {[%clk 0:03:40.3]} 26... Rg8
{[%clk 0:03:12.3]} 27. Rh7+ {[%clk 0:03:35]} 27... Ke8 {[%clk 0:03:11]} 28. Bc6+
{[%clk 0:03:32]} 1-0